bitfinex/quotes_ETHUSD_20250908
["timestamp","ask_amount","ask_price","bid_price","bid_amount"]
[1757344759856,0.07340936,4370.8,4370.7,46.80826302]
[1757344760147,0.07340936,4370.8,4370.7,46.90116302]
[1757344760852,0.00436529,4371.2,4370.8,5.28791067]
[1757344761057,0.00436529,4371.2,4370.8,35.49441067]
[1757344761253,0.00436529,4371.2,4370.8,35.64311067]
[1757344761553,1e-08,4370.9,4370.8,36.43511067]
[1757344762053,0.025,4372.8,4371.8,2.28738734]
[1757344762355,0.025,4372.8,4371.8,41.05638734]
[1757344762659,0.025,4372.8,4371.8,41.20508734]
[1757344764815,2.3353,4372.7,4371.8,41.20508734]
[1757344765889,0.04,4374.9,4373.7,2.28639367]
[1757344766174,0.04,4374.9,4374.7,2.28587103]
[1757344766332,0.04,4374.9,4374.7,38.21157103]
[1757344766532,0.04,4374.9,4374.7,42.00357103]
[1757344766753,0.04,4374.9,4374.8,36.07781878]
[1757344766954,0.2,4375.0,4374.9,2.28576653]
[1757344767134,0.70898188,4375.2,4375.1,3.07766204]
[1757344767462,2.7883,4376.1,4375.7,2.28534862]
[1757344767685,2.7883,4376.1,4375.7,10.241]
[1757344767973,3.1005,4375.8,4375.7,14.273]
[1757344768129,3.41455,4375.8,4375.7,14.273]
[1757344768739,3.41455,4375.8,4375.7,10.241]
[1757344768954,2.96155,4375.8,4375.7,14.271]
[1757344769256,3.1005,4375.8,4375.7,14.271]
[1757344769441,3.1005,4375.8,4375.7,7.241]
[1757344769640,5.3857964,4375.8,4375.7,11.27]
[1757344769844,3.78603487,4375.8,4375.7,11.27]
[1757344770239,3.1005,4375.8,4375.7,11.27]
[1757344770577,3.41455,4375.8,4375.7,11.27]
[1757344770921,5.6998464,4375.8,4375.7,11.27]
[1757344771265,3.41455,4375.8,4375.7,11.27]
[1757344771435,3.1005,4375.8,4375.7,11.27]
[1757344771828,5.3857964,4375.8,4375.7,7.241]
[1757344772131,3.1005,4375.8,4375.7,11.3866]
[1757344772330,5.3857964,4375.8,4375.7,11.3866]
[1757344772718,5.3857964,4375.8,4375.7,11.273]
[1757344772926,6.15689565,4375.8,4375.7,11.271]
[1757344773119,6.27049565,4375.8,4375.7,11.271]
[1757344773348,3.87159925,4375.8,4375.7,11.271]
[1757344773658,3.1005,4375.8,4375.7,11.3846]
[1757344774274,0.025,4375.8,4375.7,14.3846]
[1757344774567,0.025,4375.8,4375.7,16.79794862]
[1757344774733,0.025,4375.8,4375.7,11.271]
[1757344774933,3.1005,4375.8,4375.7,11.271]
[1757344775253,0.025,4375.8,4375.7,13.55634862]
[1757344775457,0.025,4375.8,4375.7,46.70504862]
[1757344776125,0.025,4375.8,4375.7,40.24]
[1757344776474,0.025,4375.8,4375.7,46.56134862]
[1757344776659,0.025,4375.8,4375.7,14.276]
[1757344776845,3.1005,4375.8,4375.7,16.56134862]
[1757344777355,3.1005,4375.8,4375.7,10.24]
[1757344777558,3.1005,4375.8,4375.7,11.276]
[1757344778427,5.9283616,4375.8,4375.7,11.276]
[1757344779735,5.9283616,4375.8,4375.7,7.24]
[1757344779934,5.9283616,4375.8,4375.7,11.272]
[1757344780964,6.7203616,4375.8,4375.7,11.271]
[1757344781166,6.7203616,4375.8,4375.7,1.754]
[1757344781338,6.7203616,4375.8,4375.7,5.785]
[1757344782279,2.28587103,4374.7,4374.6,5.482]
[1757344782480,6.38195813,4374.7,4374.6,4.03]
[1757344783191,0.792,4374.6,4374.3,1.754]
[1757344783343,3.36442779,4374.4,4374.3,1.754]
[1757344783540,2.28628912,4373.9,4373.6,7.236]
[1757344784019,5.36178912,4373.9,4373.6,7.236]
[1757344784134,6.12658945,4373.9,4373.6,7.236]
[1757344784334,6.12658945,4373.9,4373.8,4.056]
[1757344784794,3.84030033,4373.9,4373.8,4.056]
[1757344784936,3.0755,4373.9,4373.8,4.056]
[1757344785141,5.36178912,4373.9,4373.8,4.056]
[1757344785338,3.0755,4373.9,4373.8,4.056]
[1757344785654,2.3353,4374.4,4373.8,4.056]
[1757344785984,0.1136,4374.0,4373.8,4.056]
[1757344787694,2.3353,4374.4,4373.8,4.056]
[1757344787896,0.453,4374.3,4373.8,4.056]
[1757344788100,2.7883,4374.2,4373.8,4.056]
[1757344788397,2.28619093,4374.1,4373.8,4.056]
[1757344788698,2.28624014,4374.0,4373.8,4.056]
[1757344788894,2.28624014,4374.0,4373.8,0.025]
[1757344789096,2.28624014,4374.0,4373.9,4.03]
[1757344789395,2.28644594,4373.6,4373.1,0.04]
[1757344789600,3.07849822,4373.5,4373.4,1.754]
[1757344789797,3.36569822,4373.5,4373.4,1.754]
[1757344789963,6.15399822,4373.5,4373.4,1.754]
[1757344790164,2.28665508,4373.2,4373.1,1.794]
[1757344790364,6.12702876,4373.2,4373.1,1.794]
[1757344790564,6.91902876,4373.2,4373.1,5.824]
[1757344795120,6.12702876,4373.2,4373.1,5.824]
[1757344795533,5.36215508,4373.2,4373.1,5.824]
[1757344796444,6.15415508,4373.2,4373.1,5.826]
[1757344797296,3.07881195,4372.9,4372.6,7.236]
[1757344797496,3.07881195,4372.9,4372.8,1e-08]
[1757344797735,6.10971195,4372.9,4372.8,1e-08]
[1757344797936,7.17802268,4372.9,4372.8,1e-08]
[1757344798352,10.17802268,4372.9,4372.8,1e-08]
[1757344799051,7.17802268,4372.9,4372.8,4.02100001]
[1757344799641,6.38602268,4372.9,4372.8,4.02100001]
[1757344800921,4.14712268,4372.9,4372.8,4.02100001]
[1757344801126,0.1136,4372.9,4372.8,4.02100001]
[1757344801673,2.28651817,4373.5,4372.8,4.16970001]
[1757344801816,0.1136,4373.2,4372.8,4.16970001]
[1757344802320,0.1136,4373.2,4372.9,0.0929]
[1757344802642,0.1136,4373.6,4373.1,0.1487]
[1757344802825,2.85288688,4375.8,4373.2,4.1139]
[1757344802826,2.7702,4374.8,4373.2,4.1139]
[1757344803004,0.1136,4374.0,4373.3,2.40015398]
[1757344803205,0.1136,4374.0,4373.4,5.485]
[1757344803451,0.28112,4374.7,4373.4,5.485]
[1757344803452,2.3086,4374.1,4373.5,5.776]
[1757344803652,2.57214594,4373.6,4373.5,5.776]
[1757344803950,5.31734594,4373.6,4373.5,5.776]
[1757344804163,6.07771767,4373.6,4373.5,5.776]
[1757344804356,2.28625234,4374.0,4373.5,5.776]
[1757344804503,2.7452,4374.0,4373.5,5.776]
[1757344804708,2.28644594,4373.6,4373.5,5.776]
[1757344804941,0.1136,4373.7,4373.5,5.776]
[1757344805152,0.1136,4373.7,4373.6,0.1487]
[1757344805537,2.28592328,4374.6,4373.6,0.1487]
[1757344805739,0.1136,4373.9,4373.6,0.1487]
[1757344805950,2.28634393,4373.8,4373.6,0.1487]
[1757344806286,0.1136,4373.9,4373.6,0.1487]
[1757344806465,2.3496,4374.9,4373.6,0.1487]
[1757344806774,0.1136,4374.3,4373.6,0.2623]
[1757344806976,2.39972662,4374.3,4373.6,0.2623]
[1757344807137,0.1136,4374.3,4373.6,0.2623]
[1757344807480,2.28613846,4374.2,4373.6,0.2623]
[1757344807775,2.28619144,4374.1,4373.6,0.2623]
[1757344808071,0.1136,4374.3,4373.7,0.0929]
[1757344808274,2.28607507,4374.4,4374.2,0.1487]
[1757344808476,2.28608005,4374.3,4374.2,0.1487]
[1757344808648,0.1136,4374.6,4374.3,5.77]
[1757344808980,0.61307942,4376.6,4374.7,2.408]
[1757344809182,0.04,4376.9,4376.7,2.28482646]
[1757344809348,0.04,4376.9,4376.7,14.90982646]
[1757344809866,0.04,4376.9,4376.7,10.76882646]
[1757344810178,0.04,4376.9,4376.7,12.11809031]
[1757344810377,0.04,4376.9,4376.7,9.83426385]
[1757344810935,0.04,4376.9,4376.7,9.625]
[1757344811868,2.30977426,4376.8,4376.7,9.625]
[1757344812073,2.30977426,4376.8,4376.7,5.484]
[1757344812280,5.80412045,4376.8,4376.7,9.621]
[1757344812481,5.80412045,4376.8,4376.7,5.484]
[1757344812778,2.28513973,4376.1,4376.0,0.11922797]
[1757344812950,2.28513973,4376.1,4376.0,6.00922797]
[1757344813274,5.03033973,4376.1,4376.0,6.00922797]
[1757344813475,6.04757959,4376.1,4376.0,1.87322797]
[1757344813678,6.04757959,4376.1,4376.0,6.00922797]
[1757344813873,6.04757959,4376.1,4376.0,1.87322797]
[1757344813874,6.83957959,4376.1,4376.0,1.87322797]
[1757344814187,3.07719195,4376.0,4375.9,1.754]
[1757344814378,3.51379195,4376.0,4375.9,4.134]
[1757344814581,3.0772964,4375.8,4375.7,1.754]
[1757344814738,6.1081964,4375.8,4375.7,5.887]
[1757344815275,5.3161964,4375.8,4375.7,5.887]
[1757344815476,4.8795964,4375.8,4375.7,5.887]
[1757344815674,6.1081964,4375.8,4375.7,1.754]
[1757344815880,2.28555756,4375.3,4375.2,1.754]
[1757344816077,5.31645756,4375.3,4375.2,1.754]
[1757344816376,6.10845756,4375.3,4375.2,1.754]
[1757344816778,3.07776653,4374.9,4374.8,0.025]
[1757344817082,3.07776653,4374.9,4374.8,5.912]
[1757344817245,0.792,4374.8,4373.1,0.04]
[1757344817573,2.28613232,4374.2,4373.1,0.04]
[1757344817773,2.57183232,4374.2,4373.1,0.04]
[1757344817977,2.28613232,4374.2,4373.1,0.04]
[1757344818168,2.2860865,4374.3,4373.1,0.04]
[1757344818364,0.53634543,4374.9,4373.1,0.04]
[1757344818561,0.53634543,4374.9,4374.2,0.081]
[1757344818869,2.28608005,4374.3,4374.2,0.081]
[1757344819064,2.28608005,4374.3,4374.2,1.835]
[1757344819444,2.72268005,4374.3,4374.2,1.835]
[1757344819648,2.83628005,4374.3,4374.2,1.835]
[1757344819851,5.94280656,4374.3,4374.2,1.835]
[1757344820346,6.73480656,4374.3,4374.2,1.835]
[1757344820561,6.73480656,4374.3,4374.2,5.88]
[1757344822367,2.3086,4374.9,4374.2,5.88]
[1757344822566,2.7452,4375.4,4374.2,5.88]
[1757344822895,2.28588802,4374.7,4374.2,5.88]
[1757344823388,2.28555756,4375.3,4374.2,5.88]
[1757344823591,0.50307576,4375.2,4374.2,5.88]
[1757344823791,2.28593701,4374.6,4374.2,5.88]
[1757344823994,0.50307576,4375.2,4374.2,5.88]
[1757344824207,2.28603039,4374.4,4374.2,5.88]
[1757344824390,0.792,4375.1,4374.2,5.88]
[1757344824593,1.19602758,4375.1,4374.2,5.88]
[1757344824801,2.28604279,4374.4,4374.2,5.88]
[1757344825256,2.28588825,4374.7,4374.2,5.88]
[1757344825462,2.28602572,4374.5,4374.2,5.88]
[1757344825676,1.19602758,4375.1,4374.2,5.88]
[1757344825961,0.792,4374.2,4373.4,1.754]
[1757344826161,1.0975,4374.3,4373.4,1.754]
[1757344826162,3.38399822,4373.5,4373.4,1.754]
[1757344826387,6.14829822,4373.5,4373.4,1.754]
[1757344827058,6.14829822,4373.5,4373.4,5.882]
[1757344827258,6.99177051,4373.5,4373.4,5.882]
[1757344829274,6.99177051,4373.5,4373.1,0.04]
[1757344829513,3.07860279,4373.3,4373.2,1.754]
[1757344829921,6.14840279,4373.3,4373.2,1.754]
[1757344830218,2.28675966,4373.0,4372.9,1.754]
[1757344830378,6.42874664,4373.0,4372.9,1.754]
[1757344830577,2.28675966,4373.0,4372.9,1.754]
[1757344830778,2.3278,4374.0,4372.9,5.873]
[1757344831012,0.4365,4374.3,4372.9,5.873]
[1757344831013,2.28659459,4373.4,4372.9,5.873]
[1757344831212,0.4365,4374.3,4372.9,5.873]
[1757344831385,2.72258307,4374.3,4372.9,5.873]
[1757344831585,2.3278,4374.6,4372.9,5.873]
[1757344831787,2.2859733,4374.6,4373.0,3.3823233]
[1757344832001,2.2859938,4374.5,4373.7,2.28639185]
[1757344832200,2.31084513,4374.8,4373.8,11.358]
[1757344832201,0.025,4374.8,4373.8,11.358]
[1757344832403,0.1136,4374.7,4374.0,0.1136]
[1757344832692,2.28593724,4374.6,4374.0,0.1136]
[1757344832892,0.025,4374.8,4373.9,1.754]
[1757344833092,0.1136,4374.0,4373.9,1.754]
[1757344833293,2.31082708,4374.8,4373.9,5.875]
[1757344833520,0.1136,4374.7,4373.9,5.9886]
[1757344833884,2.28597828,4374.5,4373.9,5.9886]
[1757344834121,0.1136,4374.7,4373.9,5.9886]
[1757344834317,0.1128,4374.7,4373.9,5.9886]
[1757344834520,2.28606975,4374.4,4373.9,5.9886]
[1757344834696,0.025,4374.8,4374.0,4.121]
[1757344835018,2.28618458,4374.1,4374.0,4.121]
[1757344835396,2.28623685,4374.0,4373.9,1.754]
[1757344835612,2.28623685,4374.0,4373.9,5.874]
[1757344835930,2.28623685,4374.0,4373.9,5.873]
[1757344836132,2.28623685,4374.0,4373.9,1.754]
[1757344836434,2.28597012,4374.6,4373.9,5.872]
[1757344836435,0.792,4374.6,4373.9,5.872]
[1757344836595,2.28623685,4374.0,4373.9,5.872]
[1757344836800,4.61403685,4374.0,4373.9,1.754]
[1757344837030,2.28623685,4374.0,4373.9,5.871]
[1757344838334,5.82463676,4374.0,4373.9,5.871]
[1757344838933,2.28681195,4372.9,4372.8,0.00200001]
[1757344839137,2.28681195,4372.9,4372.8,5.87100001]
[1757344839294,5.35661195,4372.9,4372.8,5.87100001]
[1757344839498,2.28681195,4372.9,4372.8,5.87100001]
[1757344841410,3.02881195,4372.9,4372.8,5.87100001]
[1757344841614,6.60596543,4372.9,4372.8,5.86500001]
[1757344841801,5.07196543,4372.9,4372.8,5.86500001]
[1757344842005,2.28681195,4372.9,4372.8,5.86500001]
[1757344843441,6.14861195,4372.9,4372.8,5.86500001]
[1757344845006,6.14861195,4372.9,4372.8,5.86300001]
[1757344845211,6.14861195,4372.9,4372.8,1.75600001]
[1757344845415,6.14861195,4372.9,4372.3,0.002]
[1757344845416,3.07907346,4372.4,4372.3,0.002]
[1757344845613,3.07907346,4372.4,4372.3,4.104]
[1757344845813,2.28707346,4372.4,4372.3,4.104]
[1757344846787,6.14887346,4372.4,4372.3,4.104]
[1757344850635,2.28707346,4372.4,4372.3,4.104]
[1757344851467,5.81427916,4372.4,4372.3,4.096]
[1757344851652,6.60627916,4372.4,4372.3,4.096]
[1757344851958,6.60627916,4372.4,4372.3,0.002]
[1757344852158,6.60627916,4372.4,4372.3,4.096]
[1757344852956,6.16977916,4372.4,4372.3,4.096]
[1757344853157,6.60627916,4372.4,4372.3,4.096]
[1757344853665,3.07917807,4372.2,4372.1,1.795]
[1757344853867,3.07917807,4372.2,4371.8,1.78]
[1757344853868,3.07933502,4371.9,4371.8,1.78]
[1757344854030,6.11573502,4371.9,4371.8,1.78]
[1757344855041,6.11573502,4371.9,4371.8,5.869]
[1757344855243,5.65723502,4371.9,4371.8,5.869]
[1757344855443,6.11573502,4371.9,4371.8,5.869]
[1757344855645,7.04496989,4371.9,4371.8,5.869]
[1757344855846,7.04496989,4371.9,4371.8,5.871]
[1757344856350,4.00856989,4371.9,4371.8,5.871]
[1757344856551,0.88935095,4372.2,4371.8,5.871]
[1757344856764,2.28733502,4371.9,4371.8,5.871]
[1757344856931,0.001,4372.8,4371.8,5.871]
[1757344857131,2.71543502,4371.9,4371.8,1.782]
[1757344857331,2.40093502,4371.9,4371.8,5.87]
[1757344857564,0.1136,4371.9,4371.8,5.87]
[1757344857771,0.4595,4372.8,4371.8,5.87]
[1757344857971,2.28733502,4371.9,4371.8,5.87]
[1757344858132,0.792,4372.6,4371.8,5.87]
[1757344858334,2.28727216,4372.1,4371.8,5.87]
[1757344858569,0.1136,4372.0,4371.8,5.87]
[1757344859070,2.4008848,4372.0,4371.8,5.87]
[1757344859243,0.1136,4372.0,4371.8,5.87]
[1757344859631,0.1128,4372.0,4371.8,5.87]
[1757344859847,2.28733502,4371.9,4371.8,5.87]
[1757344860043,2.98584852,4371.9,4371.8,5.87]
[1757344860247,2.52734852,4371.9,4371.8,5.87]
[1757344860572,6.35574852,4371.9,4371.8,5.867]
[1757344861345,2.28696885,4372.6,4371.8,5.867]
[1757344861544,2.28733502,4371.9,4371.8,5.867]
[1757344861961,0.73079,4372.7,4371.8,5.867]
[1757344862273,0.792,4372.5,4371.8,5.867]
[1757344862475,0.73079,4372.7,4371.8,5.867]
[1757344862476,2.28695395,4372.7,4371.8,5.867]
[1757344862672,0.001,4372.8,4371.8,5.867]
[1757344862983,2.2872652,4372.1,4371.9,4.098]
[1757344863138,2.2872827,4372.0,4371.9,4.098]
[1757344863841,2.74473109,4372.0,4371.9,4.098]
[1757344864743,2.2872827,4372.0,4371.9,4.098]
[1757344865656,2.7457827,4372.0,4371.9,4.098]
[1757344865853,2.2872827,4372.0,4371.9,4.098]
[1757344866472,0.4585,4373.3,4371.9,4.098]
[1757344866647,2.2634,4373.4,4371.9,4.098]
[1757344866851,2.28697597,4372.6,4371.9,6.38532156]
[1757344867178,2.28695567,4372.7,4371.9,6.38532042]
[1757344867474,5.00849132,4373.4,4371.9,4.098]
[1757344867678,2.28691655,4372.7,4372.0,2.28726299]
[1757344867839,2.28669283,4373.2,4372.1,4.089]
[1757344868243,2.28589675,4374.7,4372.1,4.089]
[1757344868244,2.28591923,4374.7,4372.7,5.28691655]
[1757344868479,0.4585,4374.7,4372.7,13.73673002]
[1757344868677,0.4585,4374.2,4372.7,17.82473002]
[1757344868853,2.32629664,4373.9,4372.7,17.85173002]
[1757344869185,2.3113599,4373.8,4372.7,16.64291655]
[1757344869408,2.3113599,4373.8,4372.7,17.85173002]
[1757344869560,0.025,4373.8,4372.7,17.86173002]
[1757344869748,2.31134441,4373.8,4372.7,17.86173002]
[1757344870252,0.025,4373.8,4372.7,16.65291655]
[1757344870452,0.025,4373.8,4372.7,17.86173002]
[1757344871163,0.025,4373.8,4372.7,17.83473002]
[1757344871372,0.1136,4373.7,4372.7,16.73951655]
[1757344871544,0.1136,4373.7,4373.6,2.28644594]
[1757344871748,0.025,4375.8,4373.7,3.0]
[1757344871950,0.025,4375.8,4374.7,2.28587103]
[1757344871951,2.28544999,4375.6,4374.7,2.28587103]
[1757344872149,2.28546743,4375.5,4374.7,11.345]
[1757344872379,2.28546303,4375.5,4374.7,16.63087103]
[1757344872580,0.025,4375.8,4374.7,14.345]
[1757344872757,2.285458,4375.5,4374.7,16.63087103]
[1757344872957,2.28540937,4375.6,4374.7,14.345]
[1757344873170,2.7219,4375.5,4374.7,10.24]
[1757344873350,2.7219,4375.5,4374.7,11.343]
[1757344873559,2.31081878,4374.8,4374.7,11.343]
[1757344873756,0.025,4374.8,4374.7,11.343]
[1757344874318,0.025,4374.8,4374.7,11.344]
[1757344874597,2.31081878,4374.8,4374.7,11.343]
[1757344874769,0.025,4374.8,4374.7,11.343]
[1757344875904,0.025,4374.8,4374.7,13.62887103]
[1757344876489,0.025,4374.8,4374.7,13.65587103]
[1757344876890,0.026,4374.8,4374.7,13.62887103]
[1757344878009,0.026,4374.8,4374.7,11.343]
[1757344878157,0.026,4374.8,4374.7,7.24]
[1757344878354,0.026,4374.8,4374.7,13.62087103]
[1757344879678,0.026,4374.8,4374.7,11.335]
[1757344879879,0.026,4374.8,4374.7,13.62087103]
[1757344881205,0.026,4374.8,4374.7,16.78806339]
[1757344881370,0.026,4374.8,4374.7,14.50219236]
[1757344881556,0.026,4374.8,4374.7,16.78806339]
[1757344881889,0.04,4374.9,4374.8,2.28581878]
[1757344882595,0.025,4375.8,4375.7,2.28534862]
[1757344882803,0.025,4375.8,4375.7,11.24094862]
[1757344883356,0.025,4375.8,4375.7,4.8676]
[1757344883558,0.025,4375.8,4375.7,8.9566]
[1757344884702,0.025,4375.8,4375.7,11.24194862]
[1757344885253,0.0242,4375.8,4375.7,11.24194862]
[1757344885865,0.0242,4375.8,4375.7,11.26894862]
[1757344886106,0.0242,4375.8,4375.7,8.9516]
[1757344886404,0.0242,4375.8,4375.7,11.23694862]
[1757344886689,0.783,4375.8,4375.7,5.9516]
[1757344886864,0.0242,4375.8,4375.7,5.9516]
[1757344887790,0.0242,4375.8,4375.7,5.9506]
[1757344888160,0.4721,4375.8,4375.7,5.9506]
[1757344888355,5.3817964,4375.8,4375.7,1.8676]
[1757344888590,3.63867964,4375.8,4375.7,5.837]
[1757344888759,3.0965,4375.8,4375.7,5.837]
[1757344889267,3.0965,4375.8,4375.7,1.754]
[1757344889268,5.3817964,4375.8,4375.7,1.754]
[1757344889466,5.3817964,4375.8,4375.7,5.833]
[1757344889680,5.4953964,4375.8,4375.7,5.833]
[1757344890996,0.0242,4375.8,4375.7,5.833]
[1757344891692,0.4721,4375.8,4375.7,5.833]
[1757344891938,0.783,4375.8,4375.7,5.833]
[1757344892829,0.0242,4375.8,4375.7,5.833]
[1757344894533,3.0965,4375.8,4375.7,5.833]
[1757344894731,0.0242,4375.8,4375.7,8.11834862]
[1757344895141,0.0242,4375.8,4375.7,8.10634862]
[1757344895651,0.0242,4375.8,4375.7,8.11734862]
[1757344896041,0.0242,4375.8,4375.7,5.832]
[1757344896241,0.0242,4375.8,4375.7,1.754]
[1757344896442,3.0965,4375.8,4375.7,5.83]
[1757344896628,0.0242,4375.8,4375.7,5.83]
[1757344896969,0.0252,4375.8,4375.7,5.83]
[1757344897654,0.0252,4375.8,4375.7,1.754]
[1757344897851,0.0252,4375.8,4375.7,5.83]
[1757344898050,0.0252,4375.8,4375.7,13.59634862]
[1757344899769,0.025,4376.8,4375.9,3.0]
[1757344900061,0.025,4376.8,4375.7,44.338]
[1757344900062,0.025,4376.8,4376.7,2.28482646]
[1757344900271,0.025,4376.8,4376.7,11.10882646]
[1757344901629,0.025,4376.8,4376.7,8.824]
[1757344901824,0.025,4376.8,4376.7,4.753]
[1757344902040,3.0973,4376.8,4376.7,5.82]
[1757344902452,3.0973,4376.8,4376.7,1.753]
[1757344902657,5.92426659,4376.8,4376.7,1.753]
[1757344902941,5.92426659,4376.8,4376.7,5.819]
[1757344903141,3.63949233,4376.8,4376.7,5.819]
[1757344903378,5.92426659,4376.8,4376.7,5.819]
[1757344903780,5.92426659,4376.8,4376.7,1.753]
[1757344903954,5.92426659,4376.8,4376.7,5.818]
[1757344904362,2.6494,4376.8,4376.7,5.818]
[1757344904583,3.0973,4376.8,4376.7,5.818]
[1757344905915,5.38207426,4376.8,4376.7,5.818]
[1757344906115,3.0973,4376.8,4376.7,5.818]
[1757344906673,0.025,4376.8,4376.7,5.818]
[1757344907179,3.0973,4376.8,4376.7,1.753]
[1757344907376,5.38207426,4376.8,4376.7,5.816]
[1757344907786,5.38207426,4376.8,4376.7,1.753]
[1757344907973,3.0973,4376.8,4376.7,1.753]
[1757344908189,3.0973,4376.8,4376.7,5.814]
[1757344908395,5.93563719,4376.8,4376.7,5.813]
[1757344908801,0.1136,4376.7,4376.0,0.1136]
[1757344909000,2.28592328,4374.6,4374.5,1.62169874]
[1757344909208,2.28618458,4374.1,4373.7,0.09142335]
[1757344909509,3.07849822,4373.5,4373.4,4.113]
[1757344909810,6.15079822,4373.5,4373.4,4.113]
[1757344910111,3.07860279,4373.3,4373.2,1.753]
[1757344910272,3.07881195,4372.9,4372.8,1.778]
[1757344910604,6.57757226,4372.9,4372.3,1.753]
[1757344910771,2.28696885,4372.6,4372.3,1.753]
[1757344910971,0.42646031,4372.5,4372.3,1.753]
[1757344911192,0.42646031,4372.4,4372.3,1.753]
[1757344911470,0.42646031,4372.4,4372.3,5.872]
[1757344911900,0.21323017,4372.4,4372.3,5.872]
[1757344912102,0.4479,4373.0,4372.3,5.872]
[1757344912709,2.28692424,4372.7,4372.3,5.872]
[1757344912868,2.28707269,4372.5,4372.3,5.872]
[1757344913208,0.3109,4372.4,4372.3,5.872]
[1757344913370,0.7588,4372.4,4372.3,5.872]
[1757344913573,4.60036887,4372.8,4372.3,5.872]
[1757344913801,2.28686887,4372.8,4372.3,5.872]
[1757344913996,2.28692532,4372.7,4372.3,5.872]
[1757344914304,2.2870225,4372.5,4372.3,5.872]
[1757344914516,0.4599,4372.6,4372.3,5.872]
[1757344914920,2.28695595,4372.7,4372.3,5.872]
[1757344915227,2.28697601,4372.6,4372.3,5.872]
[1757344915523,0.4599,4373.0,4372.3,5.872]
[1757344915524,2.2869208,4372.7,4372.3,5.872]
[1757344915897,0.4599,4373.0,4372.3,5.872]
[1757344916107,2.28697137,4372.6,4372.3,5.872]
[1757344916701,2.28692351,4372.7,4372.3,5.872]
[1757344916897,0.4599,4373.0,4372.3,5.872]
[1757344917103,0.73307,4373.0,4372.3,5.872]
[1757344917424,2.28692091,4372.7,4372.3,5.872]
[1757344917629,0.4599,4373.6,4372.6,0.3147]
[1757344917828,0.025,4373.8,4372.7,2.4562]
[1757344918031,2.2865093,4373.5,4372.8,4.122]
[1757344918191,2.2865093,4373.5,4372.9,4.123]
[1757344918593,2.74630248,4373.7,4372.9,4.123]
[1757344918808,0.025,4373.8,4372.9,4.123]
[1757344919130,0.1136,4373.5,4373.0,2.28671515]
[1757344919321,0.1136,4373.5,4373.1,4.0407062]
[1757344919639,0.025,4373.8,4373.2,6.40764379]
[1757344919803,0.1386,4373.8,4373.2,6.40764379]
[1757344920216,0.1386,4373.8,4373.2,4.121]
[1757344921108,2.28639367,4373.7,4373.2,4.121]
[1757344921417,5.01817056,4373.6,4373.2,4.121]
[1757344921745,0.4599,4373.6,4373.2,4.121]
[1757344921896,0.1386,4373.8,4373.2,4.121]
[1757344922102,0.1386,4373.8,4373.7,2.60109367]
[1757344922103,0.025,4373.8,4373.7,2.60109367]
[1757344922353,0.025,4374.8,4373.9,3.0]
[1757344922645,0.04,4374.9,4374.8,5.28581878]
[1757344922848,0.04,4374.9,4374.8,7.03981878]
[1757344923028,0.04,4374.9,4374.8,10.25081878]
[1757344923196,0.04,4374.9,4374.8,14.38981878]
[1757344923926,0.04,4374.9,4374.8,14.38881878]
[1757344924924,0.04,4374.9,4374.8,10.25081878]
[1757344925125,0.04,4374.9,4374.8,11.49151878]
[1757344925529,0.04,4374.9,4374.8,14.38781878]
[1757344928620,0.025,4375.8,4375.7,2.28534862]
[1757344928844,0.025,4375.8,4375.7,8.16534862]
[1757344929163,0.025,4375.8,4375.7,8.48004862]
[1757344929560,0.025,4375.8,4375.7,11.48004862]
[1757344929872,0.025,4375.8,4375.7,14.37634862]
[1757344930043,0.025,4375.8,4375.7,13.93624862]
[1757344930643,0.025,4375.8,4375.7,14.37634862]
[1757344931578,0.025,4375.8,4375.7,14.54668927]
[1757344931922,0.026,4376.8,4375.8,5.3102964]
[1757344932127,0.026,4376.8,4375.8,13.3620964]
[1757344932367,0.026,4376.8,4375.8,13.6767964]
[1757344932758,0.026,4376.8,4375.8,14.1168964]
[1757344933960,0.026,4376.8,4376.7,2.28482646]
[1757344934160,0.026,4376.8,4376.7,11.26742646]
[1757344934348,0.026,4376.8,4376.7,11.58212646]
[1757344934549,0.026,4376.8,4376.7,14.03832646]
[1757344935035,0.026,4376.8,4376.7,11.58212646]
[1757344935245,0.026,4376.8,4376.7,14.47842646]
[1757344935441,0.026,4376.8,4376.7,44.47842646]
[1757344935640,0.026,4376.8,4376.7,46.76042646]
[1757344936061,0.0252,4376.8,4376.7,46.76042646]
[1757344936264,0.04,4377.9,4376.8,5.28477426]
[1757344936478,0.04,4377.9,4376.8,38.18107426]
[1757344936674,0.04,4377.9,4376.8,38.49577426]
[1757344937379,0.04,4379.9,4377.0,3.0]
[1757344937540,0.04,4379.9,4378.8,2.2837307]
[1757344937740,0.04,4379.9,4379.0,3.0]
[1757344937974,0.04,4379.9,4379.4,3.0]
[1757344938177,0.04,4379.9,4379.6,3.0]
[1757344938386,0.04,4379.9,4379.8,2.28320927]
[1757344938769,0.04,4379.9,4379.8,4.108]
[1757344938960,0.04,4379.9,4379.7,4.03626041]
[1757344939156,2.5594,4379.8,4379.7,1.753]
[1757344939477,3.14353,4379.8,4379.7,1.753]
[1757344940083,3.14353,4379.8,4379.7,5.885]
[1757344940283,3.93553,4379.8,4379.7,1.753]